[Event "*** Titled Tuesday Blitz"]
[Site "Chess.com"]
[Date "2019.10.01"]
[Round "6"]
[White "WPWPWP-2015"]
[Black "sandropozo"]
[Result "0-1"]
[WhiteElo "2483"]
[BlackElo "2621"]
[TimeControl "180+2"]
[EndTime "14:29:45 PDT"]
[Termination "sandropozo won on time"]

1. e4 {[%clk 0:03:01.9]} 1... c6 {[%clk 0:02:59.3]} 2. d4 {[%clk 0:03:01.1]}
2... d5 {[%clk 0:03:01.2]} 3. e5 {[%clk 0:03:02.6]} 3... c5 {[%clk 0:03:02.6]}
4. dxc5 {[%clk 0:03:01]} 4... e6 {[%clk 0:03:03.2]} 5. a3 {[%clk 0:03:00.8]}
5... Bxc5 {[%clk 0:03:04.6]} 6. b4 {[%clk 0:03:01.4]} 6... Bb6 {[%clk
0:03:06.4]} 7. Bd3 {[%clk 0:03:00.3]} 7... Nc6 {[%clk 0:03:07.4]} 8. Bb2 {[%clk
0:03:00.5]} 8... Nge7 {[%clk 0:03:00.8]} 9. Qg4 {[%clk 0:02:57.4]} 9... Ng6
{[%clk 0:02:45]} 10. Nf3 {[%clk 0:02:56.9]} 10... Bd7 {[%clk 0:01:55.7]} 11. h4
{[%clk 0:02:54.7]} 11... h5 {[%clk 0:01:57]} 12. Qg3 {[%clk 0:02:54.7]} 12...
Nce7 {[%clk 0:01:58.6]} 13. Nbd2 {[%clk 0:02:52.5]} 13... Nf5 {[%clk 0:01:34.6]}
14. Bxf5 {[%clk 0:02:44.8]} 14... exf5 {[%clk 0:01:36.5]} 15. Ng5 {[%clk
0:02:32.2]} 15... Qe7 {[%clk 0:01:21.8]} 16. f4 {[%clk 0:02:08.8]} 16... Rc8
{[%clk 0:01:16.2]} 17. O-O-O {[%clk 0:02:04.3]} 17... Ba4 {[%clk 0:01:09]} 18.
Nb3 {[%clk 0:02:02.5]} 18... Nxf4 {[%clk 0:01:03.3]} 19. Rhe1 {[%clk 0:01:43.2]}
19... Ne6 {[%clk 0:00:30.8]} 20. Rxd5 {[%clk 0:01:37.5]} 20... f4 {[%clk
0:00:28.1]} 21. Qd3 {[%clk 0:01:31.6]} 21... Nxg5 {[%clk 0:00:21]} 22. hxg5
{[%clk 0:01:30.8]} 22... Be3+ {[%clk 0:00:17.6]} 23. Kb1 {[%clk 0:01:30.3]}
23... Bc6 {[%clk 0:00:17.9]} 24. Rd6 {[%clk 0:01:25.4]} 24... O-O {[%clk
0:00:18.6]} 25. e6 {[%clk 0:00:59.6]} 25... Qxg5 {[%clk 0:00:16.7]} 26. Nc5
{[%clk 0:00:50.8]} 26... Bxc5 {[%clk 0:00:10.2]} 27. bxc5 {[%clk 0:00:51.6]}
27... Qxc5 {[%clk 0:00:09.7]} 28. e7 {[%clk 0:00:51.7]} 28... Rfe8 {[%clk
0:00:09.5]} 29. Re5 {[%clk 0:00:43.6]} 29... Qg1+ {[%clk 0:00:10]} 30. Ka2
{[%clk 0:00:45]} 30... Qxg2 {[%clk 0:00:08.3]} 31. Qd4 {[%clk 0:00:37.1]} 31...
f6 {[%clk 0:00:09.3]} 32. Rxh5 {[%clk 0:00:28.9]} 32... Qxc2 {[%clk 0:00:10.3]}
33. Qxf4 {[%clk 0:00:13.1]} 33... Be4 {[%clk 0:00:08.3]} 34. Qf1 {[%clk
0:00:09.1]} 34... Bd3 {[%clk 0:00:08]} 35. Qxd3 {[%clk 0:00:08.5]} 35... Qxd3
{[%clk 0:00:08.9]} 36. Rxd3 {[%clk 0:00:09.5]} 36... Rxe7 {[%clk 0:00:10.8]} 37.
Rg3 {[%clk 0:00:09.6]} 37... Re2 {[%clk 0:00:10.8]} 38. Kb3 {[%clk 0:00:10.5]}
38... Rc6 {[%clk 0:00:11.8]} 39. Rb5 {[%clk 0:00:09.7]} 39... b6 {[%clk
0:00:11.2]} 40. Rb4 {[%clk 0:00:09.8]} 40... Rce6 {[%clk 0:00:10.7]} 41. Bd4
{[%clk 0:00:05.7]} 41... Kf7 {[%clk 0:00:11.1]} 42. Rc4 {[%clk 0:00:06.4]} 42...
Re7 {[%clk 0:00:11.7]} 43. Rc6 {[%clk 0:00:06.3]} 43... Rd7 {[%clk 0:00:13]} 44.
Bc3 {[%clk 0:00:06.9]} 44... Rf2 {[%clk 0:00:12.6]} 45. Re3 {[%clk 0:00:06.5]}
45... g5 {[%clk 0:00:12.3]} 46. Ree6 {[%clk 0:00:07]} 46... g4 {[%clk
0:00:06.4]} 47. Rxf6+ {[%clk 0:00:07.7]} 47... Rxf6 {[%clk 0:00:08.1]} 48. Rxf6+
{[%clk 0:00:08.7]} 48... Ke7 {[%clk 0:00:09.2]} 49. Rg6 {[%clk 0:00:10.1]} 49...
Rd5 {[%clk 0:00:09.2]} 50. Rxg4 {[%clk 0:00:10.2]} 50... Kd6 {[%clk 0:00:10.7]}
51. Rg7 {[%clk 0:00:10.9]} 51... a5 {[%clk 0:00:11.8]} 52. a4 {[%clk 0:00:08.1]}
52... Kc6 {[%clk 0:00:12.3]} 53. Rg6+ {[%clk 0:00:07.6]} 53... Rd6 {[%clk
0:00:13.6]} 54. Rg5 {[%clk 0:00:08.3]} 54... Rd5 {[%clk 0:00:15.1]} 55. Rg4
{[%clk 0:00:09.4]} 55... b5 {[%clk 0:00:15.6]} 56. axb5+ {[%clk 0:00:09.9]}
56... Kxb5 {[%clk 0:00:16.8]} 57. Rg8 {[%clk 0:00:09.8]} 57... Rc5 {[%clk
0:00:17.2]} 58. Rb8+ {[%clk 0:00:09.6]} 58... Ka6 {[%clk 0:00:18.4]} 59. Re8
{[%clk 0:00:07.9]} 59... Kb5 {[%clk 0:00:19.6]} 60. Re7 {[%clk 0:00:07.6]} 60...
a4+ {[%clk 0:00:20.8]} 61. Kb2 {[%clk 0:00:08.6]} 61... Kc4 {[%clk 0:00:22.1]}
62. Re4+ {[%clk 0:00:08.8]} 62... Kd3 {[%clk 0:00:21.5]} 63. Rd4+ {[%clk
0:00:09.5]} 63... Ke3 {[%clk 0:00:22.7]} 64. Rxa4 {[%clk 0:00:10.3]} 64... Ke2
{[%clk 0:00:23.4]} 65. Kc2 {[%clk 0:00:10.6]} 65... Rc8 {[%clk 0:00:24.6]} 66.
Re4+ {[%clk 0:00:10.7]} 66... Kf3 {[%clk 0:00:26]} 67. Re7 {[%clk 0:00:11.6]}
67... Rc6 {[%clk 0:00:27.1]} 68. Kd3 {[%clk 0:00:12.1]} 68... Rd6+ {[%clk
0:00:27.9]} 69. Bd4 {[%clk 0:00:13.2]} 69... Kf4 {[%clk 0:00:28.5]} 70. Rf7+
{[%clk 0:00:12.9]} 70... Kg5 {[%clk 0:00:30]} 71. Ke4 {[%clk 0:00:12.4]} 71...
Re6+ {[%clk 0:00:30.8]} 72. Be5 {[%clk 0:00:13.4]} 72... Kg6 {[%clk 0:00:32.2]}
73. Rg7+ {[%clk 0:00:13.9]} 73... Kh5 {[%clk 0:00:32.9]} 74. Kf5 {[%clk
0:00:13.6]} 74... Ra6 {[%clk 0:00:31.1]} 75. Rg2 {[%clk 0:00:10]} 75... Ra4
{[%clk 0:00:27.9]} 76. Rg8 {[%clk 0:00:09]} 76... Ra6 {[%clk 0:00:29]} 77. Rg5+
{[%clk 0:00:07.6]} 77... Kh6 {[%clk 0:00:29]} 78. Rg1 {[%clk 0:00:06.5]} 78...
Kh7 {[%clk 0:00:30.3]} 79. Rh1+ {[%clk 0:00:07.2]} 79... Kg8 {[%clk 0:00:31.5]}
80. Bf6 {[%clk 0:00:04.9]} 80... Kf7 {[%clk 0:00:28.9]} 81. Rh7+ {[%clk
0:00:05.3]} 81... Ke8 {[%clk 0:00:30]} 82. Rb7 {[%clk 0:00:04.7]} 82... Ra2
{[%clk 0:00:28.2]} 83. Rc7 {[%clk 0:00:02.8]} 83... Rf2+ {[%clk 0:00:28.1]} 84.
Ke6 {[%clk 0:00:03.5]} 84... Re2+ {[%clk 0:00:28.2]} 85. Be5 {[%clk 0:00:04.4]}
85... Kd8 {[%clk 0:00:28.8]} 86. Rb7 {[%clk 0:00:03.9]} 86... Rc2 {[%clk
0:00:28.8]} 87. Rb1 {[%clk 0:00:03.8]} 87... Rc4 {[%clk 0:00:22.7]} 88. Rb6
{[%clk 0:00:02.5]} 88... Rc2 {[%clk 0:00:20.9]} 89. Rb1 {[%clk 0:00:03.1]} 89...
Rc4 {[%clk 0:00:21.3]} 0-1

[Event "*** Titled Tuesday Blitz"]
[Site "Chess.com"]
[Date "2019.10.01"]
[Round "7"]
[White "Saitama_Hero"]
[Black "13MiRacLe"]
[Result "0-1"]
[WhiteElo "2327"]
[BlackElo "2493"]
[TimeControl "180+2"]
[EndTime "14:32:38 PDT"]
[Termination "13MiRacLe won by resignation"]

1. d3 {[%clk 0:03:01.9]} 1... d5 {[%clk 0:03:00.3]} 2. Nf3 {[%clk 0:03:03.8]}
2... Nf6 {[%clk 0:03:01]} 3. g3 {[%clk 0:03:05.7]} 3... g6 {[%clk 0:03:02.2]} 4.
Bg2 {[%clk 0:03:07.6]} 4... Bg7 {[%clk 0:03:03.7]} 5. O-O {[%clk 0:03:09.1]}
5... O-O {[%clk 0:03:05.3]} 6. Nbd2 {[%clk 0:03:10.6]} 6... c5 {[%clk
0:03:06.8]} 7. e4 {[%clk 0:03:10.7]} 7... Nc6 {[%clk 0:03:08.3]} 8. Re1 {[%clk
0:03:10.7]} 8... e6 {[%clk 0:03:09.3]} 9. c3 {[%clk 0:03:09.7]} 9... a5 {[%clk
0:03:09.6]} 10. e5 {[%clk 0:02:41.2]} 10... Nd7 {[%clk 0:03:08.4]} 11. d4 {[%clk
0:02:42.8]} 11... cxd4 {[%clk 0:03:10.3]} 12. cxd4 {[%clk 0:02:43]} 12... f6
{[%clk 0:03:11.9]} 13. exf6 {[%clk 0:02:41.1]} 13... Qxf6 {[%clk 0:03:12.4]} 14.
Nf1 {[%clk 0:02:33.5]} 14... Nxd4 {[%clk 0:03:10.7]} 15. N1d2 {[%clk 0:02:13.7]}
15... Nc5 {[%clk 0:02:59.9]} 16. Qc2 {[%clk 0:02:01.3]} 16... Nxc2 {[%clk
0:02:59.2]} 0-1

[Event "*** Titled Tuesday Blitz"]
[Site "Chess.com"]
[Date "2019.10.01"]
[Round "7"]
[White "benhal"]
[Black "Keaton87"]
[Result "0-1"]
[WhiteElo "2308"]
[BlackElo "2581"]
[TimeControl "180+2"]
[EndTime "14:32:42 PDT"]
[Termination "Keaton87 won by resignation"]

1. d4 {[%clk 0:03:01.9]} 1... Nf6 {[%clk 0:03:00.1]} 2. Bf4 {[%clk 0:02:57.3]}
2... g6 {[%clk 0:03:01.4]} 3. Nc3 {[%clk 0:02:56.3]} 3... Bg7 {[%clk 0:03:03.3]}
4. e4 {[%clk 0:02:56.7]} 4... d6 {[%clk 0:03:04.2]} 5. Qd2 {[%clk 0:02:57.3]}
5... c5 {[%clk 0:02:57.6]} 6. dxc5 {[%clk 0:02:56.6]} 6... Qa5 {[%clk
0:02:57.5]} 7. cxd6 {[%clk 0:02:56.3]} 7... exd6 {[%clk 0:02:57]} 8. Bxd6 {[%clk
0:02:53.1]} 8... Nc6 {[%clk 0:02:57.6]} 9. f3 {[%clk 0:02:43.8]} 9... Be6 {[%clk
0:02:58.4]} 10. Nb5 {[%clk 0:02:42.3]} 10... Qxd2+ {[%clk 0:02:40.9]} 11. Kxd2
{[%clk 0:02:44.2]} 11... O-O-O {[%clk 0:02:41.6]} 12. c4 {[%clk 0:02:26]} 12...
a6 {[%clk 0:02:40.5]} 13. c5 {[%clk 0:02:27.2]} 13... axb5 {[%clk 0:02:41.4]}
14. Bxb5 {[%clk 0:02:29.1]} 14... Ne8 {[%clk 0:02:42]} 15. Bxc6 {[%clk
0:02:24.6]} 15... bxc6 {[%clk 0:02:42.7]} 16. Ne2 {[%clk 0:02:21.4]} 16... Nxd6
{[%clk 0:02:43.8]} 17. cxd6 {[%clk 0:02:23.3]} 17... Rxd6+ {[%clk 0:02:45]} 18.
Kc2 {[%clk 0:02:24.8]} 18... Rhd8 {[%clk 0:02:44.4]} 19. Rhd1 {[%clk 0:02:23.8]}
19... Rxd1 {[%clk 0:02:44.6]} 20. Rxd1 {[%clk 0:02:25.7]} 20... Rxd1 {[%clk
0:02:45.1]} 21. Kxd1 {[%clk 0:02:27.5]} 21... Bxa2 {[%clk 0:02:46]} 0-1

[Event "*** Titled Tuesday Blitz"]
[Site "Chess.com"]
[Date "2019.10.01"]
[Round "7"]
[White "Roenko_Artur"]
[Black "Colombiano07"]
[Result "1-0"]
[WhiteElo "2254"]
[BlackElo "2192"]
[TimeControl "180+2"]
[EndTime "14:33:32 PDT"]
[Termination "Roenko_Artur won by resignation"]

1. e4 {[%clk 0:03:00.6]} 1... c5 {[%clk 0:03:00.5]} 2. Nf3 {[%clk 0:03:01.7]}
2... g6 {[%clk 0:03:02.2]} 3. d4 {[%clk 0:03:03.1]} 3... cxd4 {[%clk 0:03:04]}
4. Nxd4 {[%clk 0:03:04.3]} 4... Nf6 {[%clk 0:03:05.3]} 5. Nc3 {[%clk 0:03:04]}
5... Nc6 {[%clk 0:03:07]} 6. Be3 {[%clk 0:03:02]} 6... Bg7 {[%clk 0:03:07.6]} 7.
Bc4 {[%clk 0:02:59.8]} 7... O-O {[%clk 0:03:08.6]} 8. Qd2 {[%clk 0:02:11.6]}
8... Nxe4 {[%clk 0:03:06.9]} 9. Nxe4 {[%clk 0:02:11]} 9... d5 {[%clk 0:03:07.2]}
10. Nxc6 {[%clk 0:02:07.2]} 10... bxc6 {[%clk 0:03:09.1]} 11. O-O-O {[%clk
0:02:07.9]} 11... Qc7 {[%clk 0:03:05.7]} 12. Bh6 {[%clk 0:01:58.4]} 12... Bxh6
{[%clk 0:02:57.4]} 13. Qxh6 {[%clk 0:01:58.1]} 13... dxe4 {[%clk 0:02:57.9]} 14.
Rhe1 {[%clk 0:01:56.3]} 14... Bg4 {[%clk 0:02:54.9]} 15. Rd4 {[%clk 0:01:50.9]}
15... Bf5 {[%clk 0:02:53.2]} 16. g4 {[%clk 0:01:50.4]} 16... Bxg4 {[%clk
0:02:52.9]} 17. Rdxe4 {[%clk 0:01:51.8]} 17... Be6 {[%clk 0:02:36]} 18. Rh4
{[%clk 0:01:46.6]} 1-0

[Event "*** Titled Tuesday Blitz"]
[Site "Chess.com"]
[Date "2019.10.01"]
[Round "7"]
[White "kosya4ok"]
[Black "kacprekt"]
[Result "1-0"]
[WhiteElo "2617"]
[BlackElo "2417"]
[TimeControl "180+2"]
[EndTime "14:35:01 PDT"]
[Termination "kosya4ok won by resignation"]

1. d4 {[%clk 0:03:01.9]} 1... Nf6 {[%clk 0:02:57.9]} 2. c4 {[%clk 0:03:03.3]}
2... g6 {[%clk 0:02:59.3]} 3. Nc3 {[%clk 0:03:03.8]} 3... d5 {[%clk 0:03:00.9]}
4. Nf3 {[%clk 0:02:59.5]} 4... Bg7 {[%clk 0:03:01.2]} 5. h4 {[%clk 0:03:00.6]}
5... dxc4 {[%clk 0:02:57]} 6. e4 {[%clk 0:02:56]} 6... c5 {[%clk 0:02:58.2]} 7.
d5 {[%clk 0:02:57.1]} 7... O-O {[%clk 0:02:59.2]} 8. h5 {[%clk 0:02:55.4]} 8...
Nxh5 {[%clk 0:02:48]} 9. Bxc4 {[%clk 0:02:55.4]} 9... b5 {[%clk 0:02:47.2]} 10.
Bxb5 {[%clk 0:02:54.2]} 10... Qa5 {[%clk 0:02:48.3]} 11. Be2 {[%clk 0:02:54.3]}
11... Ba6 {[%clk 0:02:41.3]} 12. Bd2 {[%clk 0:02:47.3]} 12... Bxe2 {[%clk
0:02:39.8]} 13. Qxe2 {[%clk 0:02:49.2]} 13... Qa6 {[%clk 0:02:29.1]} 14. e5
{[%clk 0:02:48.8]} 14... Qxe2+ {[%clk 0:02:26.7]} 15. Kxe2 {[%clk 0:02:50.7]}
15... Nd7 {[%clk 0:02:27.4]} 16. g4 {[%clk 0:02:43.4]} 16... Nxe5 {[%clk
0:02:16.5]} 17. Nxe5 {[%clk 0:02:42.9]} 17... Bxe5 {[%clk 0:02:18.4]} 18. gxh5
{[%clk 0:02:43.8]} 18... Bxc3 {[%clk 0:02:19.6]} 19. Bxc3 {[%clk 0:02:43.5]}
19... Rad8 {[%clk 0:02:20.7]} 20. Rad1 {[%clk 0:02:44.1]} 20... Rd6 {[%clk
0:02:21.2]} 21. Rh4 {[%clk 0:02:39.7]} 21... Rfd8 {[%clk 0:02:17.7]} 22. hxg6
{[%clk 0:02:40.9]} 22... fxg6 {[%clk 0:02:18.8]} 23. Ra4 {[%clk 0:02:38.9]}
23... R8d7 {[%clk 0:02:18.3]} 24. Ra5 {[%clk 0:02:40]} 24... Rxd5 {[%clk
0:02:14.6]} 25. Rxd5 {[%clk 0:02:41.9]} 25... Rxd5 {[%clk 0:02:16.4]} 26. Rxa7
{[%clk 0:02:43.1]} 26... h5 {[%clk 0:02:17.1]} 27. Rxe7 {[%clk 0:02:42.2]} 27...
h4 {[%clk 0:02:17.9]} 28. Kf3 {[%clk 0:02:42.9]} 28... Rg5 {[%clk 0:02:16.4]}
29. Re1 {[%clk 0:02:43.4]} 29... Rf5+ {[%clk 0:02:03.4]} 30. Kg2 {[%clk
0:02:39.9]} 30... g5 {[%clk 0:01:57.6]} 31. Re4 {[%clk 0:02:35.2]} 31... Kf7
{[%clk 0:01:57.2]} 32. a4 {[%clk 0:02:36.6]} 32... Kg6 {[%clk 0:01:58.5]} 33. a5
{[%clk 0:02:38.1]} 33... Kh5 {[%clk 0:01:59.6]} 34. f3 {[%clk 0:02:39.7]} 34...
h3+ {[%clk 0:01:52.8]} 35. Kxh3 {[%clk 0:02:40.1]} 35... Rxf3+ {[%clk
0:01:53.7]} 36. Kg2 {[%clk 0:02:41.5]} 36... Rf7 {[%clk 0:01:52.1]} 37. a6
{[%clk 0:02:42.7]} 37... Ra7 {[%clk 0:01:52.2]} 38. Ra4 {[%clk 0:02:44.2]} 38...
g4 {[%clk 0:01:51.9]} 39. Bd2 {[%clk 0:02:43.1]} 39... Rd7 {[%clk 0:01:51]} 40.
Be3 {[%clk 0:02:44.1]} 40... Rd3 {[%clk 0:01:47.7]} 41. a7 {[%clk 0:02:44.7]}
41... Rxe3 {[%clk 0:01:48.6]} 42. a8=Q {[%clk 0:02:45.9]} 42... Re2+ {[%clk
0:01:50]} 43. Kf1 {[%clk 0:02:46.1]} 43... Rxb2 {[%clk 0:01:50.9]} 44. Qh8+
{[%clk 0:02:47.1]} 1-0

[Event "*** Titled Tuesday Blitz"]
[Site "Chess.com"]
[Date "2019.10.01"]
[Round "7"]
[White "newauto"]
[Black "brendan174"]
[Result "1-0"]
[WhiteElo "2003"]
[BlackElo "2100"]
[TimeControl "180+2"]
[EndTime "14:35:12 PDT"]
[Termination "newauto won by resignation"]

1. e4 {[%clk 0:02:42.4]} 1... e5 {[%clk 0:03:00.4]} 2. Nf3 {[%clk 0:02:42.3]}
2... Nc6 {[%clk 0:03:01.4]} 3. Bb5 {[%clk 0:02:43.4]} 3... g6 {[%clk 0:03:01.7]}
4. O-O {[%clk 0:02:43.5]} 4... Bg7 {[%clk 0:03:01.3]} 5. d3 {[%clk 0:02:44]}
5... Nge7 {[%clk 0:03:01.1]} 6. c4 {[%clk 0:02:42.8]} 6... O-O {[%clk
0:02:58.7]} 7. Nc3 {[%clk 0:02:43.1]} 7... d6 {[%clk 0:02:59]} 8. a3 {[%clk
0:02:43.7]} 8... f5 {[%clk 0:02:56.6]} 9. Bg5 {[%clk 0:02:43.2]} 9... h6 {[%clk
0:02:51.2]} 10. Bxe7 {[%clk 0:02:42.5]} 10... Nxe7 {[%clk 0:02:52.3]} 11. Ne1
{[%clk 0:02:34.8]} 11... f4 {[%clk 0:02:47.6]} 12. Ba4 {[%clk 0:02:33]} 12... g5
{[%clk 0:02:37.7]} 13. b4 {[%clk 0:02:32.9]} 13... Ng6 {[%clk 0:02:34.8]} 14.
Qh5 {[%clk 0:02:26.6]} 14... Kh7 {[%clk 0:02:32.7]} 15. Bd1 {[%clk 0:02:07.6]}
15... Be6 {[%clk 0:02:00.4]} 16. Bg4 {[%clk 0:02:05.9]} 16... Qd7 {[%clk
0:01:52.3]} 17. h3 {[%clk 0:01:59.3]} 17... Rae8 {[%clk 0:01:39.2]} 18. Nd5
{[%clk 0:01:55.4]} 18... c6 {[%clk 0:01:38.3]} 19. Nc3 {[%clk 0:01:50]} 19...
Nh4 {[%clk 0:01:28.1]} 20. Bxe6 {[%clk 0:01:29.8]} 20... Qxe6 {[%clk 0:01:27.2]}
21. Nf3 {[%clk 0:01:26.8]} 21... Ng6 {[%clk 0:01:20.9]} 22. Nxg5+ {[%clk
0:01:26.9]} 1-0

[Event "*** Titled Tuesday Blitz"]
[Site "Chess.com"]
[Date "2019.10.01"]
[Round "7"]
[White "ferdipy"]
[Black "DonBroca"]
[Result "0-1"]
[WhiteElo "2161"]
[BlackElo "2088"]
[TimeControl "180+2"]
[EndTime "14:35:16 PDT"]
[Termination "DonBroca won by resignation"]

1. e4 {[%clk 0:03:01.9]} 1... c5 {[%clk 0:02:59.4]} 2. Nf3 {[%clk 0:03:00.5]}
2... d6 {[%clk 0:02:59.4]} 3. d4 {[%clk 0:03:00.9]} 3... cxd4 {[%clk 0:03:01.3]}
4. Nxd4 {[%clk 0:03:02.1]} 4... Nf6 {[%clk 0:03:02.8]} 5. Nc3 {[%clk 0:03:03.3]}
5... a6 {[%clk 0:03:02]} 6. Be3 {[%clk 0:02:56.5]} 6... e5 {[%clk 0:03:02.5]} 7.
Nf3 {[%clk 0:02:56.9]} 7... Be7 {[%clk 0:02:51.7]} 8. Bc4 {[%clk 0:02:57.3]}
8... O-O {[%clk 0:02:53.1]} 9. a4 {[%clk 0:02:50.6]} 9... Be6 {[%clk 0:02:52.5]}
10. Bxe6 {[%clk 0:02:46.9]} 10... fxe6 {[%clk 0:02:54.4]} 11. Qe2 {[%clk
0:02:39.8]} 11... Nc6 {[%clk 0:02:42.5]} 12. Ng5 {[%clk 0:02:36.5]} 12... Qd7
{[%clk 0:02:23.3]} 13. Rd1 {[%clk 0:02:28.6]} 13... h6 {[%clk 0:02:07]} 14. Nf3
{[%clk 0:02:28.9]} 14... d5 {[%clk 0:01:30.1]} 15. exd5 {[%clk 0:01:54.7]} 15...
exd5 {[%clk 0:01:30.4]} 16. Nxd5 {[%clk 0:01:47.1]} 16... Nxd5 {[%clk
0:01:28.8]} 17. c4 {[%clk 0:01:47.7]} 17... Bb4+ {[%clk 0:01:26.9]} 18. Kf1
{[%clk 0:01:48.5]} 18... Nxe3+ {[%clk 0:01:26.3]} 19. fxe3 {[%clk 0:01:49.8]}
19... Qg4 {[%clk 0:01:05]} 20. Kg1 {[%clk 0:01:46.4]} 20... Rad8 {[%clk
0:00:54.1]} 0-1

[Event "*** Titled Tuesday Blitz"]
[Site "Chess.com"]
[Date "2019.10.01"]
[Round "7"]
[White "aranibos"]
[Black "Gubajdullin"]
[Result "0-1"]
[WhiteElo "2155"]
[BlackElo "2610"]
[TimeControl "180+2"]
[EndTime "14:35:38 PDT"]
[Termination "Gubajdullin won by resignation"]

1. d4 {[%clk 0:03:01.9]} 1... d5 {[%clk 0:02:59.8]} 2. Nf3 {[%clk 0:03:01.4]}
2... Bf5 {[%clk 0:02:59.3]} 3. Bf4 {[%clk 0:02:57.1]} 3... e6 {[%clk 0:02:59.4]}
4. e3 {[%clk 0:02:27.7]} 4... Nf6 {[%clk 0:02:37.2]} 5. Nbd2 {[%clk 0:02:26.6]}
5... h6 {[%clk 0:02:34.8]} 6. h3 {[%clk 0:02:26.9]} 6... Be7 {[%clk 0:02:30.7]}
7. Bd3 {[%clk 0:02:27]} 7... Bxd3 {[%clk 0:02:29.5]} 8. cxd3 {[%clk 0:02:27.9]}
8... c6 {[%clk 0:02:30.6]} 9. Qb3 {[%clk 0:02:28.2]} 9... Qb6 {[%clk 0:02:31.7]}
10. O-O {[%clk 0:02:22.2]} 10... Nbd7 {[%clk 0:02:31.8]} 11. Qc2 {[%clk
0:02:15.1]} 11... a5 {[%clk 0:02:32]} 12. a3 {[%clk 0:02:13.6]} 12... a4 {[%clk
0:02:32.7]} 13. Rab1 {[%clk 0:02:12.3]} 13... O-O {[%clk 0:02:32.9]} 14. b4
{[%clk 0:02:11.9]} 14... axb3 {[%clk 0:02:33.5]} 15. Rxb3 {[%clk 0:02:12.4]}
15... Qa6 {[%clk 0:02:32.5]} 16. Rfb1 {[%clk 0:02:12.5]} 16... Ra7 {[%clk
0:02:33.1]} 17. Ne5 {[%clk 0:02:06.5]} 17... Nxe5 {[%clk 0:02:30]} 18. Bxe5
{[%clk 0:02:05.6]} 18... Nd7 {[%clk 0:02:29.1]} 19. Bg3 {[%clk 0:01:51.4]} 19...
b5 {[%clk 0:02:20.8]} 20. Rc1 {[%clk 0:01:45.7]} 20... Rc8 {[%clk 0:02:18.4]}
21. Ra1 {[%clk 0:01:43.3]} 21... b4 {[%clk 0:02:13.9]} 22. a4 {[%clk 0:01:43.3]}
22... c5 {[%clk 0:02:10.1]} 23. Rxb4 {[%clk 0:01:43.8]} 23... cxb4 {[%clk
0:02:09.2]} 24. Qd1 {[%clk 0:01:43.5]} 24... Qxd3 {[%clk 0:02:06.4]} 25. Rc1
{[%clk 0:01:35.5]} 25... Rxc1 {[%clk 0:01:59.2]} 26. Qxc1 {[%clk 0:01:36]} 26...
Rxa4 {[%clk 0:01:57.2]} 27. Qc8+ {[%clk 0:01:32.9]} 27... Nf8 {[%clk 0:01:57.7]}
28. Nf3 {[%clk 0:01:33.7]} 28... Ra1+ {[%clk 0:01:57]} 29. Kh2 {[%clk
0:01:34.3]} 29... Qf1 {[%clk 0:01:56.8]} 30. Bc7 {[%clk 0:01:24.7]} 30... Qxf2
{[%clk 0:01:54.6]} 0-1

[Event "*** Titled Tuesday Blitz"]
[Site "Chess.com"]
[Date "2019.10.01"]
[Round "7"]
[White "francyIM"]
[Black "chessS1r"]
[Result "1-0"]
[WhiteElo "2657"]
[BlackElo "2473"]
[TimeControl "180+2"]
[EndTime "14:35:53 PDT"]
[Termination "francyIM won by checkmate"]

1. d4 {[%clk 0:03:01.9]} 1... Nf6 {[%clk 0:02:59.2]} 2. c4 {[%clk 0:03:03.3]}
2... e6 {[%clk 0:02:59.9]} 3. Nc3 {[%clk 0:03:04.1]} 3... Bb4 {[%clk 0:03:00.5]}
4. f3 {[%clk 0:03:05.6]} 4... d5 {[%clk 0:03:00.3]} 5. a3 {[%clk 0:03:05]} 5...
Bxc3+ {[%clk 0:03:00.8]} 6. bxc3 {[%clk 0:03:06.9]} 6... c5 {[%clk 0:03:02.4]}
7. cxd5 {[%clk 0:03:08.5]} 7... exd5 {[%clk 0:03:03.2]} 8. e3 {[%clk 0:03:09.5]}
8... Bf5 {[%clk 0:02:57.8]} 9. Bd3 {[%clk 0:03:09]} 9... Bxd3 {[%clk 0:02:56.6]}
10. Qxd3 {[%clk 0:03:10.9]} 10... O-O {[%clk 0:02:57.5]} 11. Ne2 {[%clk
0:03:11.8]} 11... Re8 {[%clk 0:02:57.4]} 12. O-O {[%clk 0:03:12.9]} 12... Nc6
{[%clk 0:02:54.3]} 13. Ng3 {[%clk 0:03:12.9]} 13... g6 {[%clk 0:02:42.5]} 14.
Bb2 {[%clk 0:03:12]} 14... Na5 {[%clk 0:02:37.3]} 15. Rae1 {[%clk 0:03:12.1]}
15... Nc4 {[%clk 0:02:37.9]} 16. Bc1 {[%clk 0:03:13.1]} 16... cxd4 {[%clk
0:02:32.9]} 17. cxd4 {[%clk 0:03:12.5]} 17... b5 {[%clk 0:02:31.5]} 18. e4
{[%clk 0:03:12.7]} 18... a5 {[%clk 0:02:28.1]} 19. e5 {[%clk 0:03:13.3]} 19...
Nd7 {[%clk 0:02:28.2]} 20. f4 {[%clk 0:03:14.7]} 20... Nf8 {[%clk 0:02:26.4]}
21. f5 {[%clk 0:03:15.3]} 21... b4 {[%clk 0:02:20.8]} 22. Kh1 {[%clk 0:03:09.2]}
22... Rb8 {[%clk 0:02:15.8]} 23. Bh6 {[%clk 0:03:09.1]} 23... b3 {[%clk
0:02:10.6]} 24. Bxf8 {[%clk 0:03:06.5]} 24... Rxf8 {[%clk 0:02:10.5]} 25. f6
{[%clk 0:03:06.5]} 25... Re8 {[%clk 0:02:02.4]} 26. Nf5 {[%clk 0:03:04]} 26...
Rb7 {[%clk 0:01:47.8]} 27. Qh3 {[%clk 0:03:02.3]} 27... Re6 {[%clk 0:01:44.5]}
28. Qh6 {[%clk 0:03:00.9]} 28... Qf8 {[%clk 0:01:43.7]} 29. Ng7 {[%clk
0:03:01.9]} 29... b2 {[%clk 0:01:32.9]} 30. Qh3 {[%clk 0:02:56.2]} 30... Reb6
{[%clk 0:01:19.5]} 31. e6 {[%clk 0:02:56.6]} 31... fxe6 {[%clk 0:00:47.9]} 32.
Nxe6 {[%clk 0:02:55.4]} 32... Qf7 {[%clk 0:00:46.9]} 33. Ng5 {[%clk 0:02:56]}
33... Qf8 {[%clk 0:00:17.7]} 34. f7+ {[%clk 0:02:53]} 34... Kh8 {[%clk 0:00:16]}
35. Qxh7# {[%clk 0:02:53.2]} 1-0